bitfinex/quotes_BTCUSD_20240730
["timestamp","ask_amount","ask_price","bid_price","bid_amount"]
[1722348330200,0.0105,66444.0,66443.0,0.752522]
[1722348330574,0.0305,66444.0,66443.0,0.150504]
[1722348330877,0.0325,66444.0,66443.0,0.203684]
[1722348330995,0.0325,66444.0,66443.0,0.023]
[1722348331367,0.0325,66444.0,66441.0,0.474527]
[1722348331368,0.01,66442.0,66441.0,0.474527]
[1722348331608,0.0095,66443.0,66442.0,0.451521]
[1722348331851,0.0295,66443.0,66442.0,0.504701]
[1722348332103,0.0095,66443.0,66442.0,0.504701]
[1722348332333,0.0095,66443.0,66442.0,0.805715]
[1722348332800,0.002,66444.0,66443.0,0.481693]
[1722348332944,0.002,66444.0,66443.0,0.8639424]
[1722348333144,0.0095,66445.0,66444.0,0.782692]
[1722348333380,0.0095,66450.0,66449.0,0.150491]
[1722348333532,0.0295,66452.0,66451.0,0.150486]
[1722348333737,0.0295,66452.0,66445.0,0.300997]
[1722348333738,0.01,66448.0,66435.0,0.04492672]
[1722348333980,0.0165,66449.0,66445.0,0.023]
[1722348334157,0.0165,66449.0,66446.0,0.0015542]
[1722348334704,0.0165,66452.0,66451.0,0.150486]
[1722348334976,0.0165,66456.0,66455.0,0.150477]
[1722348335172,0.0065,66456.0,66455.0,0.504612]
[1722348335376,0.0165,66456.0,66455.0,0.805567]
[1722348335549,0.0165,66456.0,66455.0,0.9162197]
[1722348335956,0.0165,66463.0,66455.0,0.31446574]
[1722348336095,0.0165,66463.0,66462.0,0.150461]
[1722348336311,0.0165,66463.0,66462.0,0.173461]
[1722348336514,0.0165,66463.0,66462.0,0.474384]
[1722348336758,0.0065,66463.0,66462.0,0.173461]
[1722348336962,0.0165,66463.0,66462.0,0.173461]
[1722348337188,0.0165,66463.0,66455.0,0.013]
[1722348337189,0.0165,66460.0,66459.0,0.180648]
[1722348337358,0.0165,66460.0,66459.0,0.474405]
[1722348337558,0.0165,66460.0,66459.0,0.173468]
[1722348337962,0.00849,66467.0,66450.0,0.150489]
[1722348337963,0.0165,66451.0,66450.0,0.150489]
[1722348338158,0.0065,66451.0,66450.0,0.752445]
[1722348338386,0.0065,66455.0,66454.0,0.15048]
[1722348338599,0.0065,66455.0,66450.0,0.02969699]
[1722348338753,0.0165,66455.0,66454.0,0.15048]
[1722348338953,0.0165,66455.0,66454.0,0.45144]
[1722348339279,0.0165,66455.0,66453.0,0.150481]
[1722348339456,0.0165,66455.0,66454.0,0.17348]
[1722348339683,0.09534716,66487.0,66455.0,0.752387]
[1722348339684,0.0065,66456.0,66455.0,0.752387]
[1722348340065,0.0065,66456.0,66455.0,0.9162207]
[1722348341209,0.00083,66463.0,66455.0,0.1638337]
[1722348341390,0.00083,66463.0,66462.0,0.752307]
[1722348341595,0.00083,66463.0,66462.0,0.451384]
[1722348341596,0.01733,66463.0,66462.0,0.451384]
[1722348341799,0.0065,66460.0,66459.0,0.03018]
[1722348341987,0.0065,66460.0,66459.0,0.805522]
[1722348341988,0.0165,66460.0,66459.0,0.805522]
[1722348342194,0.00083,66463.0,66459.0,0.805522]
[1722348342195,0.00083,66463.0,66462.0,0.451384]
[1722348342323,0.00083,66463.0,66462.0,1.15716728]
[1722348342521,0.00183,66463.0,66462.0,1.15716728]
[1722348343135,0.00183,66463.0,66462.0,1.30780032]
[1722348343761,0.00183,66463.0,66462.0,1.60872332]
[1722348343961,0.00183,66463.0,66462.0,1.30780032]
[1722348344163,0.00183,66463.0,66462.0,1.10641]
[1722348344394,0.00083,66463.0,66462.0,1.10641]
[1722348344566,0.00083,66463.0,66462.0,0.805487]
[1722348344843,0.00183,66463.0,66462.0,0.819487]
[1722348345050,0.01833,66463.0,66462.0,0.187461]
[1722348345178,0.01833,66463.0,66462.0,0.789307]
[1722348345179,0.00833,66463.0,66462.0,0.789307]
[1722348345639,0.00183,66463.0,66462.0,1.1992538]
[1722348345994,0.00183,66463.0,66462.0,1.2294338]
[1722348346384,0.00183,66463.0,66462.0,1.38006684]
[1722348347079,0.00183,66463.0,66462.0,1.68098984]
[1722348348963,0.00183,66463.0,66462.0,1.92318984]
[1722348350384,0.00183,66463.0,66462.0,2.22411284]
[1722348351224,0.00183,66463.0,66462.0,2.23611284]
[1722348351428,0.00183,66463.0,66462.0,2.23961284]
[1722348352231,0.00183,66463.0,66462.0,2.22761284]
[1722348352884,0.00183,66463.0,66462.0,2.23761284]
[1722348353041,1e-06,66463.0,66462.0,2.2425844]
[1722348353389,1e-06,66463.0,66462.0,2.76529391]
[1722348354390,1e-06,66463.0,66462.0,2.76515732]
[1722348354550,1e-06,66463.0,66462.0,2.75315732]
[1722348354752,1e-06,66463.0,66462.0,2.76315732]
[1722348354981,0.00849,66467.0,66466.0,1.384252]
[1722348355204,0.00849,66467.0,66466.0,1.80857936]
[1722348355474,0.00849,66467.0,66466.0,1.82350417]
[1722348356022,0.00849,66467.0,66466.0,1.94242532]
[1722348356225,0.00849,66467.0,66466.0,1.95242532]
[1722348356547,0.00849,66467.0,66466.0,1.95442532]
[1722348356743,0.00849,66467.0,66466.0,1.95642532]
[1722348356991,0.00849,66467.0,66466.0,2.24333032]
[1722348357427,0.00083,66471.0,66469.0,0.01]
[1722348357636,0.00083,66471.0,66470.0,1.92173394]
[1722348357836,0.00083,66471.0,66470.0,2.03361259]
[1722348358043,0.00083,66471.0,66470.0,2.15292057]
[1722348358649,0.00083,66471.0,66470.0,1.85203357]
[1722348359462,0.00083,66471.0,66470.0,1.30883859]
[1722348359589,0.00083,66471.0,66470.0,1.10795159]
[1722348359795,0.00083,66471.0,66470.0,1.42283859]
[1722348360045,0.00083,66471.0,66470.0,1.40883859]
[1722348360445,0.00083,66471.0,66470.0,1.42283859]
[1722348360646,0.00083,66471.0,66470.0,0.15906622]
[1722348360896,0.308171,66471.0,66470.0,0.02888622]
[1722348361112,0.308171,66471.0,66442.0,0.06720247]
[1722348361113,0.0065,66454.0,66439.0,0.0601]
[1722348361320,0.07534716,66450.0,66440.0,0.15063304]
[1722348361522,0.0165,66455.0,66440.0,0.15063304]
[1722348361523,0.0636,66452.0,66451.0,0.150486]
[1722348361722,0.0636,66452.0,66451.0,0.752432]
[1722348361867,0.0636,66459.0,66458.0,0.451411]
[1722348362067,0.0636,66459.0,66458.0,0.90298504]
[1722348362271,0.0636,66459.0,66458.0,0.76977891]
[1722348362883,0.0636,66459.0,66458.0,0.82295891]
[1722348363087,0.0636,66459.0,66458.0,0.49183791]
[1722348363309,0.0636,66459.0,66458.0,0.8419627]
[1722348363750,0.0614,66469.0,66468.0,0.451344]
[1722348363907,0.0614,66469.0,66468.0,0.75224]
[1722348364104,0.0614,66469.0,66468.0,0.79275942]
[1722348364303,0.07763,66471.0,66468.0,0.82293942]
[1722348364580,0.07763,66471.0,66470.0,0.45133]
[1722348364780,0.07763,66471.0,66470.0,0.92585004]
[1722348364781,0.00083,66471.0,66470.0,0.92585004]
[1722348364934,0.00083,66471.0,66470.0,0.023]
[1722348365131,0.167771,66471.0,66470.0,0.01750986]
[1722348365343,0.150444,66470.0,66459.0,0.1]
[1722348365542,0.0065,66462.0,66460.0,0.04611248]
[1722348365706,0.0065,66462.0,66461.0,0.0015542]
[1722348365924,0.1486,66462.0,66461.0,0.4529462]
[1722348366172,0.1421,66462.0,66461.0,0.7840542]
[1722348366397,0.0868,66469.0,66468.0,0.150448]
[1722348366598,0.1492,66469.0,66468.0,0.150448]
[1722348366910,0.1492,66469.0,66468.0,0.1685108]
[1722348367087,0.1492,66469.0,66468.0,0.4924068]
[1722348367088,0.0699,66469.0,66468.0,0.4924068]
[1722348367296,0.0799,66469.0,66468.0,0.0410628]
[1722348367493,0.0634,66469.0,66468.0,0.4924068]
[1722348367743,0.00083,66471.0,66470.0,0.45133]
[1722348367930,0.00083,66471.0,66470.0,0.99015262]
[1722348368276,0.00083,66471.0,66470.0,1.29103962]
[1722348368446,0.00083,66471.0,66470.0,1.59192662]
[1722348368807,0.01733,66471.0,66470.0,0.18658146]
[1722348369010,0.01733,66471.0,66470.0,0.48746846]
[1722348369011,0.00733,66471.0,66470.0,0.48746846]
[1722348369304,0.00733,66471.0,66470.0,0.48308897]
[1722348369525,0.01733,66471.0,66470.0,0.48308897]
[1722348369728,0.01833,66471.0,66470.0,0.49708897]
[1722348369901,0.01833,66471.0,66470.0,0.19620197]
[1722348370111,0.01833,66471.0,66470.0,0.18220197]
[1722348370112,0.01733,66471.0,66470.0,0.18220197]
[1722348370312,0.01733,66471.0,66470.0,0.03175897]
[1722348370542,0.309271,66471.0,66470.0,0.02275897]
[1722348370714,0.15883,66471.0,66470.0,0.014]
[1722348370920,0.23417716,66471.0,66470.0,0.014]
[1722348371118,0.14883,66471.0,66470.0,0.46533]
[1722348371321,0.14883,66471.0,66470.0,0.82150897]
[1722348371552,0.06583,66471.0,66470.0,0.82150897]
[1722348371748,0.00183,66471.0,66470.0,1.12239597]
[1722348371914,0.00183,66471.0,66470.0,0.84450897]
[1722348372524,0.00833,66471.0,66470.0,0.79797597]
[1722348373080,0.01733,66471.0,66470.0,0.00875897]
[1722348373282,0.01833,66471.0,66470.0,0.02075897]
[1722348373491,0.00183,66471.0,66470.0,0.764217]
[1722348373691,0.00083,66471.0,66470.0,0.46010356]
[1722348373975,0.00183,66471.0,66470.0,0.84717434]
[1722348374178,0.00833,66471.0,66470.0,0.24540034]
[1722348374377,0.01833,66471.0,66470.0,0.19621656]
[1722348374529,0.00183,66471.0,66470.0,0.19621656]
[1722348374730,0.00183,66471.0,66470.0,0.79799056]
[1722348375004,0.00183,66471.0,66470.0,1.09887756]
[1722348375322,0.00183,66471.0,66470.0,1.21178332]
[1722348376019,0.00183,66471.0,66470.0,1.66330336]
[1722348376776,0.00183,66471.0,66470.0,1.2495106]
[1722348377640,0.00183,66471.0,66470.0,1.5503976]
[1722348378061,0.00183,66471.0,66470.0,1.6503976]
[1722348378262,0.00183,66471.0,66470.0,1.76858912]
[1722348378916,0.00183,66471.0,66470.0,1.46770212]
[1722348379153,0.00183,66471.0,66470.0,1.3495106]
[1722348379505,0.00183,66471.0,66470.0,1.50020492]
[1722348380892,0.00183,66471.0,66470.0,0.17321656]
[1722348381142,0.00183,66471.0,66470.0,0.02277356]
[1722348381143,0.01833,66471.0,66470.0,0.02277356]
[1722348381685,0.00833,66471.0,66470.0,0.77499056]
[1722348382094,0.00833,66471.0,66470.0,1.07587756]
[1722348382249,0.00833,66471.0,66470.0,0.78247776]
[1722348382445,0.00833,66471.0,66470.0,1.10636476]
[1722348382697,0.00183,66471.0,66470.0,1.22001924]
[1722348382883,0.00183,66471.0,66470.0,1.40083228]
[1722348383521,0.00183,66471.0,66470.0,1.2871778]
[1722348383656,0.00083,66471.0,66470.0,0.82165776]
[1722348383858,0.00733,66471.0,66470.0,0.49059076]
[1722348384056,0.00833,66471.0,66470.0,0.50459076]
[1722348384305,0.01833,66471.0,66470.0,0.83565776]
[1722348384460,0.01733,66471.0,66470.0,0.82165776]
[1722348384661,0.16463,66471.0,66470.0,0.00877356]
[1722348385060,0.01,66464.0,66463.0,0.150459]
[1722348385276,0.0065,66465.0,66464.0,0.180637]
[1722348385496,0.0065,66468.0,66467.0,0.752252]
[1722348385698,0.0065,66468.0,66467.0,0.782432]
[1722348386272,0.0065,66468.0,66467.0,0.805432]
[1722348386820,0.0165,66468.0,66467.0,0.805432]
[1722348387033,0.0165,66468.0,66467.0,0.819432]
[1722348387229,0.0065,66468.0,66467.0,0.819432]
[1722348387434,0.0165,66468.0,66467.0,0.819432]
[1722348387632,0.0065,66468.0,66467.0,0.63214236]
[1722348387845,0.0065,66468.0,66467.0,0.93304336]
[1722348388034,0.00083,66471.0,66470.0,0.48151]
[1722348388260,0.00083,66471.0,66470.0,0.805397]
[1722348388482,0.00083,66471.0,66470.0,1.106284]
[1722348389777,0.00083,66471.0,66470.0,1.120284]
[1722348390151,0.00083,66471.0,66470.0,1.106284]
[1722348390410,0.00083,66471.0,66470.0,1.33884498]
[1722348390607,0.00083,66471.0,66470.0,1.35284498]
[1722348390814,0.00083,66471.0,66470.0,1.48947802]
[1722348391372,0.00083,66471.0,66470.0,1.79036502]
[1722348392023,0.00083,66471.0,66470.0,1.80436502]
[1722348392416,0.00083,66471.0,66470.0,1.68317991]
[1722348392625,0.00083,66471.0,66470.0,1.80463301]
[1722348393046,0.00083,66471.0,66470.0,1.50374601]
[1722348396277,0.00083,66471.0,66470.0,1.80463301]
[1722348396488,0.00083,66471.0,66470.0,1.50374601]
[1722348398284,0.00083,66471.0,66470.0,1.40044025]
[1722348399035,0.00083,66471.0,66470.0,1.40066498]
[1722348399591,0.00083,66471.0,66470.0,1.50066498]
[1722348400505,0.00083,66471.0,66470.0,1.80155198]
[1722348400696,0.00083,66471.0,66470.0,1.50066498]
[1722348400904,0.00083,66471.0,66470.0,1.9522463]
[1722348401310,0.00083,66471.0,66470.0,1.9622463]
[1722348401513,0.00848,66480.0,66470.0,1.9622463]
[1722348401514,0.00848,66480.0,66471.0,0.03100998]
[1722348401723,0.01498,66480.0,66479.0,0.481449]
[1722348401924,0.0165,66474.0,66472.0,0.0080462]
[1722348402156,0.0165,66474.0,66473.0,0.5958152]
[1722348402347,0.0165,66474.0,66473.0,0.474309]
[1722348402546,0.0798,66474.0,66473.0,0.89294682]
[1722348402672,0.0798,66474.0,66469.0,0.0015542]
[1722348402673,0.0165,66470.0,66469.0,0.0015542]
[1722348403060,0.0165,66468.0,66467.0,0.75972468]
[1722348403329,0.0165,66468.0,66467.0,0.45882368]
[1722348403740,0.166948,66468.0,66467.0,0.00747468]
[1722348403946,0.01,66459.0,66458.0,0.15047]
[1722348404184,0.0711,66459.0,66458.0,0.15047]
[1722348404586,0.0711,66459.0,66448.0,0.060304]
[1722348404587,0.0065,66455.0,66454.0,0.30096]
[1722348404791,0.0611,66459.0,66451.0,0.00729042]
[1722348404792,0.0963,66452.0,66451.0,0.00729042]
[1722348404996,0.0963,66452.0,66428.0,0.17898866]
[1722348404997,0.0704,66440.0,66439.0,0.03018]
[1722348405144,0.0704,66440.0,66439.0,0.180694]
[1722348405569,0.0804,66440.0,66439.0,0.03018]
[1722348405770,0.0804,66440.0,66439.0,0.180694]
[1722348405771,0.0704,66440.0,66439.0,0.180694]
[1722348405968,0.0639,66440.0,66439.0,0.1987634]
[1722348406170,0.0704,66440.0,66439.0,0.495722]
[1722348406369,0.0065,66442.0,66441.0,0.451527]
[1722348406568,0.0798,66452.0,66441.0,0.451527]
[1722348406569,0.0065,66450.0,66445.0,0.32818]
[1722348406769,0.1505,66452.0,66451.0,0.451459]
[1722348407454,0.1505,66452.0,66451.0,0.474459]
[1722348407672,0.1505,66452.0,66451.0,0.775432]
[1722348408320,0.1605,66452.0,66451.0,0.1306426]
[1722348408526,0.1605,66452.0,66451.0,0.2811286]
[1722348408660,0.1605,66452.0,66451.0,0.8830746]
[1722348408661,0.1505,66452.0,66451.0,0.8830746]
[1722348408881,0.0103,66455.0,66454.0,0.7524]
[1722348409114,0.0038,66455.0,66454.0,1.16753768]
[1722348409316,0.0038,66455.0,66454.0,1.01721072]
[1722348409540,0.0203,66455.0,66454.0,0.47444]
[1722348409949,0.0103,66455.0,66454.0,0.47444]
[1722348410393,0.0203,66455.0,66454.0,0.48844]
[1722348410606,0.0103,66455.0,66454.0,0.7894]
[1722348411019,0.0103,66455.0,66454.0,1.54195304]
[1722348411020,0.0038,66455.0,66454.0,1.54195304]
[1722348411156,0.0038,66455.0,66454.0,1.81982736]
[1722348411946,0.0038,66455.0,66454.0,1.51886736]
[1722348412114,0.0038,66455.0,66454.0,1.50486736]
[1722348412472,0.0038,66455.0,66454.0,1.51886736]
[1722348412673,0.0038,66455.0,66454.0,1.50486736]
[1722348412877,0.071,66467.0,66466.0,0.779442]
[1722348412878,0.061,66467.0,66466.0,0.779442]
[1722348413100,0.0165,66468.0,66466.0,0.779442]
[1722348413101,0.0165,66468.0,66467.0,0.17763]
[1722348413299,0.0065,66468.0,66467.0,0.501531]
[1722348413498,0.0065,66468.0,66467.0,0.81053026]
[1722348413702,0.0165,66468.0,66467.0,0.81053026]
[1722348413908,0.0065,66468.0,66467.0,0.81053026]
[1722348414111,0.0165,66468.0,66467.0,0.89158329]
[1722348414567,0.00083,66471.0,66470.0,0.47851]
[1722348414843,0.00083,66471.0,66470.0,0.96112267]
[1722348415388,0.00083,66471.0,66470.0,1.26200967]
[1722348415593,0.00083,66471.0,66470.0,0.96112267]
[1722348415845,0.01733,66471.0,66470.0,0.84006232]
[1722348415996,0.00733,66471.0,66470.0,0.81048963]
[1722348416201,0.00733,66471.0,66470.0,1.27600967]
[1722348416202,0.00083,66471.0,66470.0,1.27600967]
[1722348416400,0.00083,66471.0,66470.0,1.37600967]
[1722348417060,0.00848,66480.0,66479.0,0.779295]
[1722348417258,0.00848,66480.0,66479.0,1.25377404]
[1722348417430,0.00848,66480.0,66479.0,1.38721467]
[1722348417941,0.00848,66480.0,66479.0,1.68806067]
[1722348418397,0.00848,66480.0,66479.0,2.08890667]
[1722348418526,0.00848,66480.0,66479.0,1.90915985]
[1722348418886,0.00848,66480.0,66479.0,2.08890667]
[1722348419116,0.00848,66480.0,66479.0,1.90915777]
[1722348419445,0.00848,66480.0,66479.0,2.21000377]
[1722348419659,0.00848,66480.0,66479.0,2.27180377]
[1722348420078,0.00848,66480.0,66479.0,2.28180377]
[1722348420299,0.00848,66480.0,66479.0,2.27180377]
[1722348420567,0.00848,66480.0,66479.0,1.98495777]
[1722348420747,0.00848,66480.0,66479.0,1.97095777]
[1722348421176,0.00848,66480.0,66479.0,1.97163478]
[1722348421411,0.00848,66480.0,66479.0,1.84986067]
[1722348421624,0.00848,66480.0,66479.0,1.97174361]
[1722348421980,0.00848,66480.0,66479.0,1.98574361]
[1722348422197,0.00848,66480.0,66479.0,2.28658961]
[1722348422546,0.00848,66480.0,66479.0,2.31058961]
[1722348422746,0.00848,66480.0,66479.0,2.30058961]
[1722348422952,0.00848,66480.0,66479.0,2.31058961]
[1722348423174,0.00848,66480.0,66479.0,2.30058961]
[1722348423389,0.00848,66480.0,66479.0,2.16070667]
[1722348423587,0.00848,66480.0,66479.0,2.2822788]
[1722348423783,0.00848,66480.0,66479.0,2.16470667]
[1722348424010,0.00848,66480.0,66479.0,2.17470667]
[1722348424213,0.00849,66483.0,66482.0,1.681761]
[1722348424422,0.00849,66483.0,66482.0,2.09788365]
[1722348424627,0.00849,66483.0,66482.0,2.22746276]
[1722348424796,0.00849,66483.0,66482.0,2.53029576]
[1722348424992,0.00849,66488.0,66487.0,1.390825]
[1722348425243,1e-08,66492.0,66491.0,0.478368]
[1722348425442,1e-08,66492.0,66491.0,1.41163807]
[1722348425645,1e-08,66492.0,66491.0,1.74345018]
[1722348426203,0.01650001,66492.0,66491.0,0.58638811]
[1722348426458,0.00650001,66492.0,66491.0,0.58638811]
[1722348426671,0.01650001,66492.0,66491.0,0.8939291]
[1722348426834,0.01650001,66492.0,66491.0,0.9079291]
[1722348427045,0.00650001,66492.0,66491.0,0.8939291]
[1722348427239,0.00650001,66492.0,66491.0,0.98332201]
[1722348427442,1e-08,66492.0,66491.0,1.43474705]
[1722348427640,1e-08,66492.0,66491.0,1.45774705]
[1722348428599,1e-08,66492.0,66491.0,1.46539394]
[1722348430155,1e-08,66492.0,66491.0,1.47939394]
[1722348430784,0.00848,66501.0,66500.0,1.079808]
[1722348430983,0.00848,66501.0,66500.0,1.37047856]
[1722348431187,0.00848,66501.0,66500.0,1.48505913]
[1722348433315,0.00848,66501.0,66500.0,1.78581013]
[1722348433510,0.00848,66515.0,66508.0,0.478252]
[1722348433863,0.00848,66515.0,66508.0,1.65403004]
[1722348434035,0.00848,66515.0,66508.0,1.91207237]
[1722348434190,0.00848,66515.0,66508.0,2.21278737]
[1722348434771,0.00848,66515.0,66508.0,1.91207237]
[1722348434971,0.00848,66515.0,66508.0,2.35431516]
[1722348435168,0.00848,66515.0,66512.0,1.079619]
[1722348435446,0.00848,66515.0,66512.0,2.05070049]
[1722348435679,0.000497,66514.0,66513.0,1.079605]
[1722348435845,0.000497,66514.0,66513.0,1.65548524]
[1722348436055,0.000497,66514.0,66513.0,1.96127763]
[1722348436227,1e-08,66515.0,66514.0,1.079588]
[1722348436433,1e-08,66516.0,66515.0,0.177522]
[1722348436633,0.00848,66523.0,66522.0,0.77881]
[1722348436835,1e-05,66523.0,66522.0,1.63074704]
[1722348437034,1e-05,66523.0,66522.0,1.6603796]
[1722348437249,0.00847,66538.0,66529.0,0.60124]
[1722348437559,0.00847,66538.0,66537.0,1.079224]
[1722348437762,0.00847,66538.0,66537.0,1.202224]
[1722348437983,0.00847,66538.0,66537.0,1.20882587]
[1722348438173,0.00847,66538.0,66537.0,1.45092587]
[1722348438381,0.00847,66538.0,66537.0,1.75150987]
[1722348438565,0.45094115,66552.0,66537.0,1.75150987]
[1722348438566,0.0337464,66559.0,66552.0,0.327696]
[1722348438764,0.44444115,66557.0,66556.0,0.477927]
[1722348438961,0.0237464,66559.0,66558.0,1.078891]
[1722348439163,0.0237464,66559.0,66558.0,1.35252404]
[1722348439326,0.0237464,66559.0,66558.0,1.05853774]
[1722348439530,0.09909356,66559.0,66558.0,0.84744165]
[1722348439981,0.0237464,66559.0,66558.0,1.14793065]
[1722348440600,0.0237464,66559.0,66558.0,1.44841965]
[1722348440889,0.0237464,66559.0,66558.0,1.45327869]
[1722348441330,0.0237464,66559.0,66558.0,1.46093588]
[1722348441843,0.0237464,66559.0,66558.0,1.60413588]
[1722348442054,0.0165,66573.0,66572.0,0.175893]
[1722348442264,0.0165,66573.0,66572.0,0.96796734]
[1722348442462,0.0165,66573.0,66572.0,0.97924908]
[1722348443074,0.0165,66577.0,66575.0,0.175886]
[1722348443302,0.0165,66577.0,66576.0,0.79827139]
[1722348443516,0.0165,66577.0,66576.0,0.50614936]
[1722348443831,0.0165,66577.0,66576.0,0.57265126]
[1722348444150,0.0165,66577.0,66576.0,0.05789938]
[1722348444753,0.0165,66577.0,66576.0,0.00921938]
[1722348444922,0.0165,66577.0,66559.0,0.1015542]
[1722348444923,0.0165,66560.0,66559.0,0.1]
[1722348445123,0.292416,66571.0,66555.0,0.300502]
[1722348445124,0.0065,66556.0,66555.0,0.300502]
[1722348445326,0.0165,66558.0,66557.0,0.751235]
[1722348445518,0.0165,66562.0,66557.0,0.22575654]
[1722348445745,0.0165,66560.0,66559.0,0.480907]
[1722348445947,0.44444115,66569.0,66554.0,0.150253]
[1722348445948,0.0165,66555.0,66554.0,0.150253]
[1722348446149,0.0165,66555.0,66554.0,0.60139304]
[1722348446348,0.0165,66555.0,66554.0,0.90190004]
[1722348447081,0.0165,66555.0,66554.0,1.00190004]
[1722348447313,0.0611,66557.0,66555.0,0.300503]
[1722348447503,0.0776,66557.0,66556.0,0.250249]
[1722348447788,0.0776,66557.0,66550.0,0.150262]
[1722348447789,0.0165,66551.0,66550.0,0.150262]
[1722348447928,0.0065,66551.0,66550.0,0.450787]
[1722348448162,0.0165,66551.0,66550.0,0.450787]
[1722348448694,0.0165,66551.0,66550.0,0.751312]
[1722348448873,0.0065,66551.0,66550.0,0.751312]
[1722348449069,0.0065,66551.0,66550.0,0.874312]
[1722348449273,0.0165,66551.0,66550.0,0.573787]
[1722348449469,0.0165,66551.0,66550.0,0.9917987]
[1722348449893,0.0165,66551.0,66550.0,0.6912737]
[1722348450094,0.0165,66551.0,66550.0,0.9917987]
[1722348450571,0.0065,66551.0,66550.0,0.99943484]
[1722348451042,0.0065,66554.0,66550.0,0.24812284]
[1722348451254,0.0065,66554.0,66553.0,0.75128]
[1722348451465,0.0065,66554.0,66553.0,1.051792]
[1722348451678,0.1375,66557.0,66556.0,0.751245]
[1722348451679,0.054,66557.0,66556.0,0.751245]
[1722348451886,0.054,66557.0,66556.0,0.774245]
[1722348452025,0.044,66557.0,66556.0,0.774245]
[1722348452236,0.044,66557.0,66556.0,0.8967826]
[1722348452460,0.054,66557.0,66556.0,0.8967826]
[1722348452693,0.054,66557.0,66556.0,0.5962846]
[1722348452903,0.054,66557.0,66556.0,0.2957866]
[1722348453131,0.044,66557.0,66556.0,0.5962846]
[1722348453357,0.044,66557.0,66556.0,1.1972806]
[1722348453587,0.01,66566.0,66561.0,0.300474]
[1722348453809,0.01,66566.0,66565.0,0.450687]
[1722348453987,0.01,66568.0,66567.0,0.450673]
[1722348454451,0.01,66568.0,66563.0,0.300464]
[1722348454673,0.1491,66565.0,66564.0,0.473693]
[1722348454874,0.1491,66565.0,66564.0,0.8515724]
[1722348455612,0.1391,66565.0,66564.0,1.1520344]
[1722348455871,0.075,66565.0,66564.0,1.1520344]
[1722348457090,0.085,66565.0,66564.0,0.503873]
[1722348457242,0.085,66565.0,66564.0,0.473693]
[1722348457447,0.085,66565.0,66561.0,0.450712]
[1722348457448,0.01,66562.0,66561.0,0.450712]
[1722348457649,0.01,66562.0,66561.0,0.473712]
[1722348457850,0.01,66562.0,66561.0,0.18262241]
[1722348458073,0.01,66562.0,66561.0,0.51327841]
[1722348458270,0.01,66562.0,66561.0,0.520925]
[1722348458477,0.01,66562.0,66561.0,0.821401]
[1722348458976,0.075,66565.0,66564.0,0.480873]
[1722348459139,0.085,66565.0,66564.0,0.804335]
[1722348459334,0.085,66565.0,66564.0,0.81369973]
[1722348459536,0.085,66565.0,66564.0,0.00936473]
[1722348459940,0.01,66563.0,66562.0,0.03018]
[1722348460498,0.15034716,66565.0,66561.0,0.00764659]
[1722348460499,0.01,66562.0,66561.0,0.00764659]
[1722348460721,0.01,66562.0,66561.0,0.02164659]
[1722348460916,0.15034716,66565.0,66558.0,0.150244]
[1722348460917,0.01,66559.0,66558.0,0.150244]
[1722348461113,0.01,66559.0,66558.0,0.751222]
[1722348461468,0.075,66565.0,66564.0,0.150231]
[1722348461613,0.075,66565.0,66564.0,0.480873]
[1722348461614,0.085,66565.0,66564.0,0.480873]
[1722348462140,0.085,66565.0,66564.0,0.180411]
[1722348462275,0.085,66565.0,66564.0,0.781335]
[1722348462488,0.085,66565.0,66564.0,0.480873]
[1722348462692,0.085,66565.0,66564.0,0.180411]
[1722348463254,0.01,66563.0,66562.0,0.30047]
[1722348463473,0.01,66563.0,66562.0,0.480885]
[1722348463748,0.01,66563.0,66562.0,0.4884254]
[1722348464316,0.01,66563.0,66562.0,0.0377204]
[1722348464520,0.01,66551.0,66550.0,0.450784]
[1722348464718,0.01,66551.0,66550.0,0.150262]
[1722348464965,0.01,66551.0,66550.0,0.450787]
[1722348465118,0.01,66551.0,66550.0,0.751312]
[1722348465722,0.01,66548.0,66547.0,0.150268]
[1722348465966,0.01,66546.0,66545.0,0.45830217]
[1722348466161,0.01,66546.0,66545.0,0.75137]
[1722348466365,0.01,66546.0,66545.0,0.450822]
[1722348466620,0.01,66543.0,66542.0,0.300559]
[1722348466744,0.01,66544.0,66543.0,0.450835]
[1722348466950,0.01,66546.0,66545.0,0.75137]
[1722348467391,0.01,66546.0,66545.0,0.464822]
[1722348467545,0.0601,66547.0,66546.0,0.450814]
[1722348467752,0.0601,66547.0,66546.0,0.8278932]
[1722348468258,0.0601,66547.0,66546.0,0.8508932]
[1722348468458,0.0601,66547.0,66546.0,1.0749]
[1722348468663,0.0781,66550.0,66549.0,0.751325]
[1722348470301,0.0751,66552.0,66551.0,0.751302]
[1722348470302,0.0651,66552.0,66551.0,0.751302]
[1722348470497,0.0878,66555.0,66554.0,0.751267]
[1722348470851,0.0878,66555.0,66554.0,0.8587458]
[1722348470996,0.0878,66555.0,66554.0,0.774267]
[1722348471205,0.0778,66555.0,66554.0,0.774267]
[1722348471401,0.0707,66557.0,66554.0,0.774267]
[1722348471402,0.0707,66557.0,66556.0,1.051743]
[1722348471649,0.0778,66561.0,66556.0,0.300498]
[1722348471650,0.01,66559.0,66556.0,0.300498]
[1722348471799,0.01,66559.0,66558.0,0.150244]
[1722348472002,0.01,66556.0,66555.0,0.300503]
[1722348472214,0.01,66554.0,66551.0,0.014]
[1722348472416,0.01,66552.0,66551.0,0.014]
[1722348472642,0.0744,66552.0,66551.0,0.014]
[1722348472838,0.0744,66552.0,66551.0,0.17839747]
[1722348473012,0.0744,66552.0,66551.0,0.47891847]
[1722348473214,0.0744,66552.0,66551.0,0.17839747]
[1722348473415,0.0744,66552.0,66551.0,0.01413747]